bitfinex-derivatives/quotes_BTCF0:USTF0_20260104
["timestamp","ask_amount","ask_price","bid_price","bid_amount"]
[1767508743799,0.09292,91548.0,91540.0,0.010929]
[1767508744197,0.09644341,91550.0,91542.0,0.010928]
[1767508744403,0.09292,91549.0,91542.0,0.010928]
[1767508745199,0.00016382,91555.0,91546.0,0.010928]
[1767508745406,0.09292,91554.0,91546.0,0.010928]
[1767508746105,0.09292,91553.0,91546.0,0.010928]
[1767508746490,0.09292,91553.0,91548.0,0.010928]
[1767508746689,0.09292,91552.0,91548.0,0.010928]
[1767508749904,0.09292,91552.0,91537.0,0.00016382]
[1767508750104,0.09292,91552.0,91545.0,0.010928]
[1767508751609,0.10351391,91552.0,91542.0,0.010928]
[1767508752407,0.10351391,91552.0,91545.0,0.010928]
[1767508754104,0.01059391,91552.0,91545.0,0.010928]
[1767508754302,0.10351391,91552.0,91545.0,0.010928]
[1767508754502,0.09292,91552.0,91545.0,0.010928]
[1767508756606,0.10351391,91552.0,91542.0,0.010928]
[1767508758507,0.17448099,91552.0,91542.0,0.010928]
[1767508758696,0.2709244,91552.0,91538.0,0.010929]
[1767508760401,0.2709244,91552.0,91541.0,0.010928]
[1767508761312,0.01059391,91551.0,91541.0,0.010928]
[1767508762811,0.08156099,91551.0,91541.0,0.010928]
[1767508765513,0.01059391,91550.0,91541.0,0.010928]
[1767508771707,0.10618737,91549.0,91537.0,0.00016382]
[1767508771914,0.10172526,91540.0,91522.0,0.09292]
[1767508772217,0.17269234,91540.0,91532.0,0.00499815]
[1767508772614,0.16676149,91540.0,91532.0,0.00499815]
[1767508773117,0.09579441,91540.0,91534.0,0.010929]
[1767508773517,0.07096708,91542.0,91534.0,0.010929]
[1767508775322,0.09313001,91541.0,91534.0,0.010929]
[1767508775522,0.09313001,91541.0,91522.0,0.09292]
[1767508775523,0.09313001,91540.0,91522.0,0.09292]
[1767508775918,0.09281827,91540.0,91522.0,0.10411857]
[1767508776118,0.09281827,91540.0,91533.0,0.010929]
[1767508776517,0.09281827,91540.0,91523.0,0.01119857]
[1767508776732,0.16434208,91542.0,91531.0,0.01093]
[1767508777117,0.09281827,91542.0,91531.0,0.01093]
[1767508777317,0.09281827,91542.0,91533.0,0.010929]
[1767508778018,0.09281827,91547.0,91536.0,0.010929]
[1767508778215,0.00083406,91549.0,91536.0,0.010929]
[1767508778216,0.09365233,91546.0,91536.0,0.010929]
[1767508780226,0.00094538,91545.0,91536.0,0.010929]
[1767508780529,0.09376365,91545.0,91536.0,0.010929]
[1767508782430,0.07096708,91550.0,91536.0,0.010929]
[1767508782431,0.09365295,91544.0,91536.0,0.010929]
[1767508782622,0.09281827,91543.0,91536.0,0.010929]
[1767508783337,0.09281827,91543.0,91538.0,0.010929]
[1767508784727,0.09343384,91542.0,91522.0,0.09292]
[1767508784934,0.07096708,91540.0,91531.0,0.01093]
[1767508785134,0.07096708,91540.0,91533.0,0.010929]
[1767508786632,0.09343384,91541.0,91533.0,0.010929]
[1767508788627,0.09357672,91539.0,91522.0,0.09292]
[1767508790329,0.00118302,91538.0,91531.0,0.01093]
[1767508790532,0.09400129,91538.0,91531.0,0.01093]
[1767508791333,0.09281827,91538.0,91531.0,0.01093]
[1767508792136,0.09281827,91538.0,91533.0,0.010929]
[1767508792921,0.00097331,91535.0,91522.0,0.09292]
[1767508793128,0.09379158,91534.0,91522.0,0.09292]
[1767508793628,0.00089472,91538.0,91522.0,0.09292]
[1767508793836,0.09371299,91540.0,91522.0,0.09292]
[1767508794034,0.00089472,91539.0,91522.0,0.09292]
[1767508794236,0.09371299,91538.0,91522.0,0.09292]
[1767508795039,0.09371299,91538.0,91533.0,0.010929]
[1767508795339,0.07096708,91540.0,91533.0,0.010929]
[1767508795536,0.09292,91542.0,91533.0,0.010929]
[1767508795737,0.09423443,91542.0,91533.0,0.010929]
[1767508797837,0.1870527,91542.0,91533.0,0.010929]
[1767508800130,0.00078944,91541.0,91533.0,0.010929]
[1767508800336,0.09176011,91536.0,91522.0,0.09292]
[1767508800642,0.09176011,91536.0,91530.0,0.01093]
[1767508800833,0.09176011,91536.0,91532.0,0.010929]
[1767508801338,0.09176011,91536.0,91519.0,0.010931]
[1767508802739,0.09176011,91536.0,91531.0,0.01093]
[1767508803542,0.09333908,91536.0,91528.0,0.01093]
[1767508803732,0.09333908,91536.0,91525.0,0.01093]
[1767508804633,0.00147088,91535.0,91525.0,0.01093]
[1767508806037,0.07243796,91535.0,91525.0,0.01093]
[1767508806237,0.00126496,91534.0,91522.0,0.010931]
[1767508806444,0.07096708,91530.0,91522.0,0.010931]
[1767508806646,0.07096708,91530.0,91519.0,0.010931]
[1767508806835,0.07096708,91530.0,91522.0,0.010931]
[1767508808445,0.07096708,91530.0,91524.0,0.01093]
[1767508809046,0.07223204,91534.0,91524.0,0.01093]
[1767508811149,0.07223204,91534.0,91520.0,0.010931]
[1767508811348,0.07096708,91530.0,91522.0,0.010931]
[1767508811953,0.07096708,91530.0,91519.0,0.010931]
[1767508812445,0.07153663,91530.0,91519.0,0.010931]
[1767508813235,0.07143859,91530.0,91519.0,0.010931]
[1767508813440,0.00047151,91529.0,91519.0,0.010931]
[1767508813738,0.16272719,91530.0,91519.0,0.010931]
[1767508814738,0.07096708,91530.0,91519.0,0.010931]
[1767508816652,0.07096708,91530.0,91521.0,0.010931]
[1767508817252,0.07103631,91530.0,91521.0,0.010931]
[1767508817455,0.07096708,91530.0,91521.0,0.010931]
[1767508818457,0.09176011,91533.0,91521.0,0.010931]
[1767508819952,0.09176011,91519.0,91499.0,0.00218583]
[1767508820153,0.09176011,91517.0,91505.0,0.010933]
[1767508820357,0.18468011,91516.0,91505.0,0.010933]
[1767508821051,0.18468011,91516.0,91507.0,0.010932]
[1767508822748,0.00016392,91518.0,91500.0,0.02192364]
[1767508822955,0.00016392,91518.0,91499.0,0.10127958]
[1767508822956,9.2e-07,91518.0,91516.0,0.010931]
[1767508823156,0.09292,91522.0,91516.0,0.010931]
[1767508823449,0.09292,91523.0,91516.0,0.010931]
[1767508824861,0.00016392,91529.0,91516.0,0.010931]
[1767508825064,0.09292,91528.0,91521.0,0.010931]
[1767508826260,0.09292,91527.0,91521.0,0.010931]
[1767508826661,0.09292,91527.0,91517.0,0.010931]
[1767508827259,0.09292,91527.0,91519.0,0.010931]
[1767508827757,0.00016392,91529.0,91519.0,0.010931]
[1767508827965,0.09292,91528.0,91519.0,0.010931]
[1767508828757,0.09292,91528.0,91521.0,0.010931]
[1767508829562,0.09292,91527.0,91521.0,0.010931]
[1767508829966,0.09292,91527.0,91523.0,0.010931]
[1767508830360,0.00016392,91529.0,91525.0,0.01093]
[1767508830563,0.09292,91529.0,91525.0,0.01093]
[1767508832567,0.06013232,91529.0,91525.0,0.01093]
[1767508833856,0.09686918,91536.0,91527.0,0.01093]
[1767508834061,0.09292,91535.0,91531.0,0.01093]
[1767508834260,0.09292,91535.0,91484.0,0.010935]
[1767508834261,0.09670526,91519.0,91484.0,0.010935]
[1767508834564,0.09670526,91514.0,91480.0,0.11671073]
[1767508834759,0.09670526,91512.0,91495.0,0.010934]
[1767508834960,0.09292,91513.0,91495.0,0.010934]
[1767508834961,0.09670526,91510.0,91495.0,0.010934]
[1767508835161,0.09670526,91510.0,91495.0,0.009934]
[1767508835363,0.00024795,91506.0,91495.0,0.009934]
[1767508837367,0.00010685,91510.0,91490.0,0.01010925]
[1767508837570,0.00010685,91501.0,91491.0,0.010934]
[1767508838064,0.09670526,91502.0,91491.0,0.010934]
[1767508839672,0.09715526,91502.0,91484.0,0.01010925]
[1767508839862,0.09715526,91502.0,91483.0,0.09566548]
[1767508839863,0.00045,91501.0,91489.0,0.010935]
[1767508840663,0.00011415,91500.0,91492.0,0.010934]
[1767508840876,0.00011415,91500.0,91492.0,0.02104325]
[1767508841066,0.00011415,91500.0,91494.0,0.010934]
[1767508842273,0.00034566,91511.0,91494.0,0.010934]
[1767508842462,0.09292,91510.0,91494.0,0.010934]
[1767508843072,0.09334975,91510.0,91494.0,0.010934]
[1767508843261,0.00041901,91509.0,91494.0,0.010934]
[1767508847272,0.09670526,91503.0,91474.0,0.01010925]
[1767508847472,0.09670526,91503.0,91477.0,0.09292]
[1767508847682,0.09670526,91509.0,91492.0,0.010934]
[1767508848584,0.09699513,91509.0,91492.0,0.010934]
[1767508849269,0.00026448,91508.0,91492.0,0.010934]
[1767508849681,0.00026448,91508.0,91494.0,0.010934]
[1767508850586,0.00016392,91512.0,91496.0,0.01010925]
[1767508850787,0.00016392,91512.0,91499.0,0.01010925]
[1767508851088,0.00016392,91512.0,91501.0,0.010933]
[1767508851482,0.00016392,91512.0,91499.0,0.01010925]
[1767508851483,0.09296,91513.0,91503.0,0.010933]
[1767508854377,0.00016392,91517.0,91503.0,0.010933]
[1767508854584,0.09296,91516.0,91503.0,0.010933]
[1767508857890,0.09670526,91515.0,91503.0,0.010933]
[1767508861999,0.09670526,91515.0,91493.0,0.0104902]
[1767508862198,0.09670526,91515.0,91491.0,0.00016392]
[1767508862600,0.09071218,91512.0,91493.0,0.010934]
[1767508863198,0.09296,91516.0,91493.0,0.010934]
[1767508863199,0.09071218,91510.0,91493.0,0.010934]
[1767508864393,0.09071218,91510.0,91489.0,0.010935]
[1767508865290,0.09071218,91506.0,91489.0,0.010935]
[1767508865499,0.09071218,91506.0,91488.0,0.010935]
[1767508866699,0.09071218,91506.0,91488.0,0.01109892]
[1767508867508,0.09071218,91505.0,91488.0,0.01109892]
[1767508867898,0.09071218,91499.0,91468.0,0.0104902]
[1767508868102,0.11994364,91498.0,91468.0,0.09296]
[1767508868303,0.09296,91508.0,91470.0,0.1092932]
[1767508868502,0.02697466,91507.0,91497.0,0.010934]
[1767508868805,0.00016392,91511.0,91504.0,0.010933]
[1767508868999,0.00016392,91511.0,91507.0,0.010932]
[1767508869205,0.00016392,91511.0,91502.0,0.010933]
[1767508871107,0.00016392,91511.0,91502.0,0.10421072]
[1767508872312,0.01000006,91528.0,91509.0,0.010932]
[1767508872607,0.09289729,91529.0,91513.0,0.010932]
[1767508872608,0.09296,91523.0,91513.0,0.010932]
[1767508873001,0.09296,91523.0,91512.0,0.0104902]
[1767508873308,0.09296,91523.0,91514.0,0.10376792]
[1767508873609,0.09296,91523.0,91515.0,0.10376792]
[1767508874003,0.00016392,91527.0,91515.0,0.10376792]
[1767508874200,0.02696395,91526.0,91515.0,0.10376792]
[1767508874411,0.00016392,91527.0,91515.0,0.10376792]
[1767508874611,0.02695844,91526.0,91515.0,0.10376792]
[1767508874813,0.00016392,91527.0,91516.0,0.0214212]
[1767508875002,0.00016392,91527.0,91516.0,0.0104902]
[1767508875413,0.00016392,91527.0,91515.0,0.09327772]
[1767508877915,0.00016392,91527.0,91512.0,0.010932]
[1767508878510,0.00016392,91527.0,91510.0,0.09327772]
[1767508878908,0.00016392,91527.0,91510.0,0.10376792]
[1767508880511,0.07100555,91520.0,91510.0,0.09327772]
[1767508880708,0.00016392,91527.0,91510.0,0.09327772]
[1767508880908,0.07100555,91520.0,91510.0,0.09327772]
[1767508881818,0.07100555,91520.0,91509.0,0.00016392]
[1767508882020,0.07100555,91520.0,91502.0,0.19672792]
[1767508882021,0.07100555,91520.0,91502.0,0.09327772]
[1767508882213,0.08100561,91514.0,91496.0,0.09327772]
[1767508882417,0.08100561,91514.0,91493.0,0.09292]
[1767508882418,0.01000006,91509.0,91493.0,0.09292]
[1767508882718,0.07100555,91510.0,91493.0,0.18619772]
[1767508882921,0.07100555,91510.0,91494.0,0.10376792]
[1767508885122,0.09193761,91510.0,91492.0,0.010934]
[1767508885323,0.07100555,91502.0,91492.0,0.010934]
[1767508886617,0.07100555,91502.0,91490.0,0.010935]
[1767508887128,0.01000006,91505.0,91490.0,0.010935]
[1767508887332,0.07100555,91500.0,91490.0,0.010935]
[1767508888326,0.01000006,91505.0,91490.0,0.010935]
[1767508888527,0.07100555,91500.0,91490.0,0.010935]
[1767508888928,0.01000006,91505.0,91490.0,0.010935]
[1767508889128,0.07100555,91500.0,91490.0,0.010935]
[1767508889725,0.07100555,91500.0,91483.0,0.09327772]
[1767508889930,0.00443349,91486.0,91467.0,0.11005568]
[1767508890227,0.09312392,91486.0,91473.0,0.010937]
[1767508890827,0.00016392,91486.0,91471.0,0.01297443]
[1767508891021,0.00016392,91486.0,91473.0,0.01297443]
[1767508891222,0.00016392,91486.0,91474.0,0.09956548]
[1767508891526,0.00016392,91486.0,91460.0,0.07100555]
[1767508891527,0.00016392,91486.0,91475.0,0.11253991]
[1767508892034,0.09296,91490.0,91480.0,0.01297443]
[1767508892218,0.16396555,91490.0,91480.0,0.11253991]
[1767508892624,0.16396555,91490.0,91480.0,0.09956548]
[1767508892826,0.16396555,91490.0,91476.0,0.01237726]
[1767508893222,0.07100555,91486.0,91474.0,0.00016392]
[1767508894931,0.16396555,91490.0,91474.0,0.00016392]
[1767508896418,0.07100555,91484.0,91474.0,0.00016392]
[1767508897326,0.09709666,91490.0,91474.0,0.00016392]
[1767508897526,0.07100555,91484.0,91474.0,0.00016392]
[1767508898538,0.010935,91489.0,91474.0,0.00016392]
[1767508898733,0.07100555,91484.0,91474.0,0.00016392]
[1767508899634,0.07100555,91484.0,91470.0,0.09962637]
[1767508899635,0.07100555,91484.0,91470.0,0.04979029]
[1767508899937,0.07100555,91480.0,91470.0,0.04979029]
[1767508900633,0.07100555,91480.0,91462.0,0.01237726]
[1767508901838,0.07100555,91480.0,91465.0,0.01237726]
[1767508902524,0.10095459,91486.0,91466.0,0.01237726]
[1767508902731,0.00546676,91478.0,91460.0,0.010938]
[1767508903230,0.09536409,91479.0,91461.0,0.01237726]
[1767508903535,0.07100555,91480.0,91463.0,0.01237726]
[1767508904231,0.09536409,91484.0,91465.0,0.01237726]
[1767508904438,0.07100555,91480.0,91471.0,0.01237726]
[1767508904637,0.07100555,91480.0,91465.0,0.01237726]
[1767508905632,0.07100555,91480.0,91465.0,0.11200363]
[1767508905837,0.07100555,91480.0,91466.0,0.01237726]
[1767508906245,0.07100555,91480.0,91466.0,0.02331426]
[1767508906743,0.07100555,91480.0,91466.0,0.01237726]
[1767508908940,0.00504994,91479.0,91462.0,0.010938]
[1767508909142,0.10041403,91479.0,91462.0,0.010938]
[1767508909533,0.07100555,91480.0,91463.0,0.01237726]
[1767508910134,0.00493009,91482.0,91463.0,0.01237726]
[1767508910332,0.07100555,91480.0,91463.0,0.01237726]
[1767508910638,0.07100555,91480.0,91463.0,0.11200363]
[1767508910943,0.07100555,91480.0,91464.0,0.01237726]
[1767508911341,0.19313264,91485.0,91466.0,0.01237726]
[1767508911547,0.09296,91485.0,91471.0,0.01237726]
[1767508912341,0.09296,91485.0,91470.0,0.09962637]
[1767508913147,0.07100555,91480.0,91468.0,0.01237726]
[1767508914147,0.07100555,91480.0,91465.0,0.11200363]
[1767508917244,0.09714158,91485.0,91459.0,0.09296]
[1767508917245,0.00447833,91477.0,91459.0,0.103898]
[1767508917442,0.07100555,91470.0,91459.0,0.09296]
[1767508917750,0.00464225,91474.0,91459.0,0.09296]
[1767508918543,0.09972239,91469.0,91455.0,0.01237726]
[1767508918849,0.00016392,91474.0,91455.0,0.01237726]
[1767508918850,0.09552801,91474.0,91455.0,0.01237726]
[1767508919241,0.18848801,91474.0,91455.0,0.01237726]
[1767508919442,0.09312392,91474.0,91455.0,0.11200363]
[1767508919937,0.09691493,91474.0,91455.0,0.11200363]
[1767508920852,0.09691493,91474.0,91455.0,0.09962637]
[1767508921347,0.00367196,91473.0,91455.0,0.09962637]
[1767508921552,0.07100555,91470.0,91455.0,0.09962637]
[1767508922051,0.00367196,91473.0,91455.0,0.09962637]
[1767508922253,0.0035546,91460.0,91441.0,0.01094]
[1767508922456,0.07456015,91460.0,91441.0,0.01094]
[1767508922752,0.07456015,91460.0,91441.0,0.02282913]
[1767508923252,0.00012514,91459.0,91441.0,0.02282913]
[1767508923439,0.0620074,91484.0,91444.0,0.09679317]
[1767508923750,0.0620074,91484.0,91443.0,0.01188913]
[1767508923751,0.02708439,91473.0,91460.0,0.09679317]
[1767508923950,0.09296,91472.0,91460.0,0.09679317]
[1767508924252,0.07100555,91470.0,91459.0,0.01188913]
[1767508924447,0.07100555,91470.0,91455.0,0.09679317]
[1767508926254,0.07100555,91470.0,91453.0,0.010939]
[1767508928245,0.08194255,91470.0,91452.0,0.01188913]
[1767508928757,0.07100555,91470.0,91452.0,0.01188913]
[1767508928953,0.07100555,91470.0,91455.0,0.01188913]
[1767508929155,0.07100555,91470.0,91456.0,0.010939]
[1767508929748,0.07100555,91470.0,91451.0,0.01188913]
[1767508929942,0.07100555,91470.0,91449.0,0.09679317]
[1767508929943,0.010937,91468.0,91449.0,0.09679317]
[1767508930147,0.07100555,91461.0,91449.0,0.09679317]
[1767508930347,0.07100555,91461.0,91448.0,0.01188913]
[1767508930562,0.00214201,91455.0,91434.0,0.01188913]
[1767508930748,0.00214201,91448.0,91427.0,0.09679317]
[1767508930946,0.00214201,91448.0,91409.0,0.09953128]
[1767508930947,0.103899,91456.0,91434.0,0.010941]
[1767508931256,0.07100555,91450.0,91434.0,0.010941]
[1767508931456,0.07100555,91450.0,91411.0,0.010944]
[1767508931647,0.010941,91439.0,91403.0,0.01188913]
[1767508931853,0.010941,91439.0,91416.0,0.010943]
[1767508931854,0.0246841,91430.0,91416.0,0.010943]
[1767508932056,0.02484811,91430.0,91422.0,0.010943]
[1767508932248,0.093,91429.0,91413.0,0.010944]
[1767508932445,0.093,91429.0,91422.0,0.010943]
[1767508932754,0.00010838,91430.0,91424.0,0.09679317]
[1767508932958,0.093,91433.0,91424.0,0.09679317]
[1767508933260,0.093,91436.0,91425.0,0.010942]
[1767508933661,0.093,91436.0,91424.0,0.09679317]
[1767508933858,0.104933,91436.0,91421.0,0.01110701]
[1767508934057,0.011933,91436.0,91421.0,0.01110701]
[1767508934363,0.011933,91434.0,91421.0,0.01110701]
[1767508934860,0.093,91433.0,91424.0,0.10773517]
[1767508935567,0.00016401,91439.0,91435.0,0.09679317]
[1767508935861,0.093,91442.0,91435.0,0.09679317]
[1767508936060,0.011933,91456.0,91435.0,0.09679317]
[1767508936061,0.093,91446.0,91435.0,0.09679317]
[1767508936652,0.093,91446.0,91431.0,0.01188913]
[1767508936855,0.00016401,91450.0,91430.0,0.07100555]
[1767508938358,0.00016401,91450.0,91437.0,0.010941]
[1767508938861,0.00016401,91450.0,91437.0,0.10773417]
[1767508940054,0.00016401,91450.0,91437.0,0.09679317]
[1767508941061,0.00016401,91450.0,91437.0,0.1196233]
[1767508941258,0.00016401,91450.0,91427.0,0.093]
[1767508941656,0.00016401,91450.0,91428.0,0.10935714]
[1767508942268,0.00016401,91450.0,91439.0,0.010941]
[1767508942563,0.00016401,91450.0,91435.0,0.010941]
[1767508943366,0.00016401,91450.0,91435.0,0.02283013]
[1767508943968,0.00016401,91450.0,91437.0,0.02283013]
[1767508944567,0.00016401,91450.0,91439.0,0.010941]
[1767508944868,0.00016401,91450.0,91434.0,0.01188913]
[1767508945066,0.00016401,91450.0,91427.0,0.093]
[1767508945067,0.00016401,91450.0,91443.0,0.01094]
[1767508946652,0.093,91455.0,91443.0,0.01094]
[1767508947266,0.10966514,91459.0,91443.0,0.01094]
[1767508947467,0.093,91458.0,91443.0,0.01094]
[1767508948369,0.103938,91458.0,91441.0,0.00016401]
[1767508948568,0.010938,91458.0,91441.0,0.00016401]
[1767508948868,0.093,91457.0,91441.0,0.00016401]
[1767508949859,0.20266514,91457.0,91441.0,0.00016401]
[1767508950070,0.10966514,91456.0,91441.0,0.00016401]
[1767508950267,0.11635545,91455.0,91441.0,0.00016401]
[1767508950662,0.01981507,91454.0,91441.0,0.00016401]
[1767508950967,0.01981507,91452.0,91441.0,0.00016401]
[1767508953971,0.11825852,91452.0,91441.0,0.00016401]
[1767508954266,0.09844345,91450.0,91441.0,0.00016401]
[1767508954877,0.09844345,91448.0,91434.0,0.010941]
[1767508955171,0.11669982,91448.0,91434.0,0.010941]
[1767508955573,0.11669982,91447.0,91434.0,0.010941]
[1767508955770,0.11669982,91447.0,91427.0,0.20317987]
[1767508955771,0.01825637,91440.0,91409.0,0.00218798]
[1767508955966,0.093,91439.0,91423.0,0.010942]
[1767508956166,0.00016401,91434.0,91425.0,0.010942]
[1767508957066,0.093,91440.0,91433.0,0.010941]
[1767508957375,0.093,91444.0,91433.0,0.010941]
[1767508957968,0.01825637,91450.0,91433.0,0.010941]
[1767508958175,0.00016401,91448.0,91433.0,0.010941]
[1767508958371,0.00016401,91448.0,91436.0,0.10163359]
[1767508959074,0.00016401,91448.0,91425.0,0.093]
[1767508959276,0.00016401,91448.0,91436.0,0.010941]
[1767508959576,0.00016401,91448.0,91425.0,0.093]
[1767508960174,0.00016401,91448.0,91427.0,0.00016401]
[1767508960378,0.00016401,91448.0,91436.0,0.010941]
[1767508960589,0.02717122,91447.0,91436.0,0.010941]
[1767508960780,0.00016401,91448.0,91427.0,0.00016401]
[1767508960975,0.02717125,91447.0,91427.0,0.00016401]
[1767508961175,0.00016401,91448.0,91435.0,0.010941]
[1767508961480,0.02717195,91447.0,91435.0,0.010941]
[1767508961679,0.00016401,91448.0,91435.0,0.010941]
[1767508961881,0.02717198,91447.0,91435.0,0.010941]
[1767508962179,0.00016401,91448.0,91435.0,0.010941]
[1767508962376,0.02717542,91447.0,91435.0,0.010941]
[1767508962578,0.00016401,91448.0,91435.0,0.010941]
[1767508962877,0.02717542,91447.0,91435.0,0.010941]
[1767508963082,0.00016401,91448.0,91427.0,0.0908566]
[1767508963374,0.02717985,91447.0,91427.0,0.0908566]
[1767508963578,0.00016401,91448.0,91427.0,0.0908566]
[1767508963873,0.02717973,91447.0,91427.0,0.0908566]
[1767508964081,0.00016401,91448.0,91436.0,0.010941]
[1767508964272,0.02718524,91447.0,91436.0,0.010941]
[1767508964472,0.00016401,91448.0,91436.0,0.010941]
[1767508964776,0.02718519,91447.0,91436.0,0.010941]
[1767508964972,0.00016401,91448.0,91436.0,0.010941]
[1767508965172,0.0271902,91447.0,91436.0,0.010941]
[1767508965384,0.0271902,91446.0,91436.0,0.010941]
[1767508965568,0.00016401,91448.0,91436.0,0.010941]
[1767508965773,0.02719665,91447.0,91436.0,0.010941]
[1767508966079,0.01825637,91447.0,91427.0,0.00016401]
[1767508966272,0.11669982,91447.0,91427.0,0.00016401]
[1767508966876,0.11669982,91447.0,91434.0,0.010941]
[1767508968887,0.01825637,91445.0,91434.0,0.010941]
[1767508970273,0.11669982,91443.0,91431.0,0.010942]
[1767508970484,0.01825637,91441.0,91428.0,0.010942]
[1767508970681,0.11669982,91441.0,91428.0,0.010942]
[1767508971476,0.09844345,91441.0,91428.0,0.010942]
[1767508972078,0.11669982,91441.0,91428.0,0.010942]
[1767508972276,0.01825637,91440.0,91428.0,0.010942]
[1767508972476,0.09844345,91441.0,91428.0,0.010942]
[1767508972980,0.01825637,91443.0,91428.0,0.010942]
[1767508973280,0.11669982,91438.0,91427.0,0.00016401]
[1767508975380,0.11669982,91437.0,91421.0,0.010943]
[1767508975685,0.01825637,91433.0,91421.0,0.010943]
[1767508976182,0.01825637,91431.0,91417.0,0.093]
[1767508976484,0.01825637,91431.0,91418.0,0.010943]
[1767508978383,0.01825637,91431.0,91420.0,0.010943]
[1767508978783,0.09844345,91432.0,91420.0,0.010943]
[1767508979183,0.09844345,91432.0,91417.0,0.093]
[1767508980378,0.09844345,91432.0,91421.0,0.010943]
[1767508980877,0.1106242,91438.0,91417.0,0.093]
[1767508981083,0.1106242,91436.0,91422.0,0.010943]
[1767508981274,0.01949879,91430.0,91422.0,0.010943]
[1767508982087,0.09112541,91431.0,91422.0,0.010943]
[1767508982678,0.01949879,91434.0,91422.0,0.010943]
[1767508983385,0.1106242,91434.0,91422.0,0.010943]
[1767508984584,0.09112541,91434.0,91422.0,0.010943]
[1767508984782,0.01949879,91433.0,91422.0,0.010943]
[1767508984977,0.01949879,91433.0,91419.0,0.010943]
[1767508986081,0.1106242,91432.0,91419.0,0.010943]
[1767508986389,0.01949879,91431.0,91419.0,0.010943]
[1767508989392,0.01949879,91431.0,91421.0,0.010943]
[1767508990092,0.09112541,91432.0,91421.0,0.010943]
[1767508991195,0.09112541,91428.0,91418.0,0.010943]
[1767508992383,0.1106242,91433.0,91418.0,0.010943]
[1767508992580,0.09112541,91431.0,91420.0,0.010943]
[1767508992895,0.01949879,91428.0,91415.0,0.00016401]
[1767508993798,0.01949879,91428.0,91418.0,0.010943]
[1767508994297,0.01949879,91428.0,91420.0,0.010943]
[1767508994790,0.01949879,91428.0,91415.0,0.00016401]
[1767508995393,0.01949879,91427.0,91415.0,0.00016401]
[1767508995586,0.09112541,91426.0,91415.0,0.00016401]
[1767508995786,0.01949879,91425.0,91415.0,0.00016401]
[1767508995986,0.01949879,91418.0,91409.0,0.01313198]
[1767508996190,0.1106242,91417.0,91409.0,0.01313198]
[1767508996495,0.01949879,91421.0,91409.0,0.00218798]
[1767508996884,0.01949879,91420.0,91409.0,0.00218798]
[1767508997991,0.01949879,91419.0,91409.0,0.00218798]
[1767508999194,0.01949879,91417.0,91409.0,0.00218798]
[1767508999392,0.09112541,91418.0,91409.0,0.00218798]
[1767508999591,0.01949879,91417.0,91409.0,0.00218798]
[1767509001994,0.09112541,91418.0,91409.0,0.00218798]
[1767509002299,0.07117188,91420.0,91409.0,0.00218798]
[1767509002696,0.01949879,91418.0,91404.0,0.010945]
[1767509002900,0.01949879,91417.0,91404.0,0.010945]
[1767509003304,0.01949879,91415.0,91403.0,0.010945]
[1767509003699,0.01949879,91414.0,91403.0,0.010945]
[1767509003900,0.01949879,91414.0,91402.0,0.093]
[1767509004104,0.01949879,91414.0,91403.0,0.010945]
[1767509004398,0.01949879,91414.0,91402.0,0.093]
[1767509005505,0.01949879,91414.0,91402.0,0.103945]
[1767509005705,0.01949879,91414.0,91404.0,0.010945]
[1767509006003,0.09112541,91415.0,91404.0,0.010945]
[1767509006794,0.1106242,91415.0,91404.0,0.010945]
[1767509007206,0.01949879,91413.0,91404.0,0.010945]
[1767509007402,0.09112541,91411.0,91397.0,0.010946]
[1767509007603,0.01949879,91405.0,91394.0,0.09304]
[1767509007904,0.01949879,91408.0,91397.0,0.010946]
[1767509008705,0.01949879,91408.0,91394.0,0.103986]
[1767509009003,0.1106242,91412.0,91397.0,0.010946]
[1767509009202,0.07117188,91410.0,91397.0,0.010946]
[1767509009604,0.01949879,91410.0,91394.0,0.09304]
[1767509009800,0.00016411,91413.0,91400.0,0.09066858]
[1767509010005,0.00016411,91413.0,91401.0,0.0194967]
[1767509010302,0.01794072,91410.0,91394.0,0.09304]
[1767509010507,0.01794072,91407.0,91399.0,0.010945]
[1767509010707,0.01794072,91405.0,91386.0,0.09268053]
[1767509011009,0.07117188,91400.0,91391.0,0.010946]
[1767509011192,0.01794072,91405.0,91391.0,0.010946]
[1767509011593,0.01794072,91405.0,91385.0,0.01885459]
[1767509011594,0.01794072,91399.0,91385.0,0.01885459]
[1767509011806,0.01794072,91395.0,91375.0,0.09268053]
[1767509012004,0.01794072,91394.0,91375.0,0.09268053]
[1767509012311,0.07117188,91390.0,91379.0,0.01326923]
[1767509012504,0.0179037,91391.0,91366.0,0.09304]
[1767509012809,0.00016411,91394.0,91385.0,0.010947]
[1767509013007,0.00016411,91394.0,91379.0,0.09219557]
[1767509013008,0.00016411,91394.0,91388.0,0.010947]
[1767509013206,0.00016411,91394.0,91390.0,0.010946]
[1767509013400,0.0179037,91403.0,91394.0,0.010946]
[1767509013706,0.09726541,91404.0,91394.0,0.010946]
[1767509014505,0.00016411,91408.0,91391.0,0.11130662]
[1767509014708,0.0179037,91413.0,91403.0,0.010945]
[1767509014895,0.09726541,91415.0,91403.0,0.010945]
[1767509015095,0.07117188,91413.0,91402.0,0.010945]
[1767509015312,0.07117188,91412.0,91395.0,0.09304]
[1767509015606,0.16843729,91412.0,91395.0,0.09304]
[1767509015796,0.09726541,91411.0,91401.0,0.010945]
[1767509016412,0.00016411,91413.0,91403.0,0.010945]
[1767509016800,0.00016411,91413.0,91405.0,0.010945]
[1767509016997,0.01806781,91413.0,91402.0,0.010945]
[1767509017207,0.09726541,91408.0,91394.0,0.09304]
[1767509017706,0.11516911,91408.0,91394.0,0.09304]
[1767509017919,0.11516911,91408.0,91401.0,0.010945]
[1767509018101,0.00016411,91413.0,91405.0,0.010945]
[1767509018602,0.00016411,91413.0,91407.0,0.010944]
[1767509018909,0.00016411,91413.0,91404.0,0.010945]
[1767509019106,0.00016411,91413.0,91406.0,0.010945]
[1767509021910,0.11533322,91413.0,91406.0,0.010945]
[1767509022219,0.11533322,91413.0,91405.0,0.010945]
[1767509022810,0.0179037,91410.0,91400.0,0.010945]
[1767509023015,0.11516911,91407.0,91392.0,0.09304]
[1767509023217,0.11516911,91407.0,91395.0,0.010946]
[1767509023606,0.11516911,91406.0,91395.0,0.010946]
[1767509023808,0.0179037,91403.0,91374.0,0.01911105]
[1767509024104,0.18634099,91390.0,91376.0,0.09304]
[1767509024608,0.11516911,91390.0,91376.0,0.09304]